Cogmind - Beta 14 @@@ ROGUE MODE // 2024.10.03 @ 19:37:39 Player: YA-B01 Result: Destroyed by D-53 Grenadier with Mini Grenade Launcher Performance ------------- Evolutions (0) 0 Regions Visited (2) 400 Robots Destroyed (23) 115 Value Destroyed (432) 432 Prototype IDs (5) 100 Alien Tech Used (0) 0 Bonus (0) 0 TOTAL SCORE: 1047 Bonus ------- None Cogmind --------- Core Integrity 0/250 Matter 295/300 Energy 100/100 System Corruption 0% Temperature Cool (0) Movement Core (50) Location -10/Mines Parts ------- > --- POWER (1) -------- (None) > --- PROPULSION (2) --- (None) > --- UTILITY (2) ------ (None) > --- WEAPON (2) ------- (None) > --- INVENTORY (5) ---- Structural Scanner Sensor Array Signal Interpreter Improved Terrain Scanner Rocket Launcher Peak State ------------ > --- POWER ------------ Light Nuclear Core > --- PROPULSION ------- Light Treads Light Treads > --- UTILITY ---------- Small Storage Unit Improved Terrain Scanner > --- WEAPON ----------- Medium Laser Mining Laser > --- INVENTORY -------- Structural Scanner Sensor Array Signal Interpreter Improved Terrain Scanner Mining Claw [Rating: 11] Favorites ----------- Power Light Nuclear Core Engine Ion Engine Power Core Light Nuclear Core Propulsion Light Treads Treads Light Treads Utility Small Storage Unit Device Seismic Detector Storage Small Storage Unit Weapon Small Laser Energy Gun Small Laser Launcher Grenade Launcher Special Weapon Mining Laser Slashing Weapon Mining Claw Build | -11 -10 -10 ------- Run | Yrd Mat Min Slots Evolved . | . . . Power . | . . . Propulsion . | . . . Utility . | . . . Weapon . | . . . Parts Attached 29 | 8 14 7 Power 4 | 2 2 . Engine 3 | 2 1 . Core 1 | . 1 . Reactor . | . . . Propulsion 7 | 2 3 2 Treads 7 | 2 3 2 Leg . | . . . Wheel . | . . . Hover . | . . . Flight . | . . . Utility 3 | 2 . 1 Device 2 | 1 . 1 Storage 1 | 1 . . Processor . | . . . Hackware . | . . . Protection . | . . . Artifact . | . . . Weapon 15 | 2 9 4 Energy Gun 9 | 2 6 1 Energy Cannon . | . . . Ballistic Gun . | . . . Ballistic Cannon . | . . . Launcher 3 | . 3 . Special Weapon 1 | . . 1 Impact Weapon . | . . . Slashing Weapon 2 | . . 2 Piercing Weapon . | . . . Special Melee Weapon . | . . . Unidentified Prototypes . | . . . Parts Lost 8 | . 3 5 Power 1 | . 1 . Propulsion 2 | . . 2 Utility 1 | . . 1 Weapon 4 | . 2 2 Highest Loss Streak 2 | . 2 2 To Critical Strikes . | . . . Average Slot Usage (%) 96 | . 99 92 Engine 5 | . 9 . Core 8 | . 4 14 Treads 25 | . 28 23 Device 13 | . 14 12 Storage 14 | . 14 14 Energy Gun 20 | . 25 13 Launcher 4 | . 2 6 Slashing Weapon 2 | . . 4 Peak Build Rating 11 | 7 9 11 Average Rating 8 | 5 7 9 On Entrance 5 | . 7 9 Naked Turns 1 | . . 1 Heaviest Build 16 | 14 16 15 Greatest Support 40 | 40 40 40 Greatest Overweight (x) . | . . . Average Overweight (x) . | . . . Largest Inventory Capacity 8 | 8 8 8 Average Capacity 7 | 7 8 7 Most Carried 8 | 5 7 8 Average Carried 5 | 2 5 6 Final Capacity 8 | 8 8 5 Final Carried 7 | 2 7 5 Class Distribution -------------------- 100% | Mutant Dominant Class ---------------- Mutant | -10/Materials Mutant | -10/Mines Resources | -11 -10 -10 ----------- Run | Yrd Mat Min Matter Collected 607 | 262 175 170 Remotely . | . . . Salvage Created 673 | 141 449 83 Parts 49 | 10 37 2 Haulers Intercepted 1 | . 1 . Recyclers Shooed 3 | 1 1 1 Parts Field Recycled . | . . . Retrieved Matter . | . . . Parts Self-Destructed . | . . . Prevented . | . . . Kills | -11 -10 -10 ------- Run | Yrd Mat Min Combat Hostiles Destroyed 27 | . 10 17 Melee 1 | . . 1 Guns 6 | . 6 . AOE 19 | . 3 16 Classes Destroyed 9 | 2 6 1 Worker 2 | . 2 . Builder 1 | . 1 . Tunneler 4 | 4 . . Hauler 1 | . 1 . Recycler 1 | 1 . . Watcher 3 | . 3 . Swarmer 3 | . 3 . Grunt 8 | . 7 1 Assembled 16 | . . 16 Best Kill Streak 15 | 4 5 15 Combat Bots Only 15 | . 3 15 Max Kills in Single Turn 3 | 1 2 3 Gunslinging . | . . . Exploded 3 | . 2 3 Melee 1 | . . 1 Uniques/NPCs Destroyed . | . . . Combat | -11 -10 -10 -------- Run | Yrd Mat Min Hostile Shots Fired 91 | . 57 34 Missed 19 | . 9 10 Damage Taken 1154 | . 601 553 Core 265 | . 129 136 Absorbed by Shields . | . . . Core Remaining (%) 100 | 100 . . Volleys Fired 92 | 9 64 19 Largest 2 | 2 2 1 Hottest 100 | 80 90 100 Shots Fired 160 | 18 123 19 Gun 142 | 18 117 7 Cannon . | . . . Launcher 17 | . 6 11 Special 1 | . . 1 Kinetic . | . . . Thermal 126 | 9 109 8 Explosive 17 | . 6 11 Electromagnetic 17 | 9 8 . Robot Hit Streak 8 | 2 7 8 Robot Miss Streak 3 | 2 3 2 Penetration Max . | . . . Secondary Targets . | . . . Shots Hit Robots 102 | 9 75 18 Core Hits 74 | 6 34 34 Critical Kills . | . . . Critical Parts Destroyed . | . . . Critical Strikes 3 | . 3 . Burn 3 | . 3 . Melee Attacks 42 | . . 42 Impact . | . . . Slashing 42 | . . 42 Piercing . | . . . Sneak Attacks . | . . . Combat Hostiles . | . . . Follow-up Attacks . | . . . Damage Inflicted 2319 | 157 1088 1074 Guns 1048 | 112 860 76 Cannons . | . . . Explosions 1091 | 42 197 852 Melee 141 | . . 141 Ramming 39 | 3 31 5 Kinetic . | . . . Thermal 942 | 86 780 76 Explosive 1049 | . 197 852 Electromagnetic 148 | 68 80 . Impact . | . . . Slashing 141 | . . 141 Piercing . | . . . Highest Corruption . | . . . Average Corruption . | . . . Corruption Purged . | . . . Corruption Blocked . | . . . Overload Shots . | . . . Overflow Damage 39 | . . 39 Projectiles . | . . . Explosions 25 | . . 25 Melee 14 | . . 14 Knockbacks 1 | . 1 . Impact 1 | . 1 . Kinetic . | . . . Secondary . | . . . Self-Inflicted Damage 112 | . . 112 Shots 5 | . . 5 Rammed 13 | 2 10 1 Targets Rammed 14 | 2 11 1 Kicked . | . . . Crushed 1 | . 1 . Highest Temperature 244 | 144 244 70 Average Temperature 68 | 68 74 22 Received Heat Transfer 398 | . 312 86 Siege Activations . | . . . Robots Corrupted . | . . . Combat Hostiles . | . . . Parts Fried . | . . . Impact Corruptions . | . . . Robots Melted 1 | . 1 . Combat Hostiles 1 | . 1 . Parts Melted 1 | . 1 . Heat Transferred 2427 | 150 2067 210 Parts Sabotaged . | . . . Parts Stolen . | . . . Parts Stripped . | . . . Power Chain Reactions 1 | 1 . . Alert | -11 -10 -10 ------- Run | Yrd Mat Min Peak Influence 217 | 25 217 68 Initial 16 | . 16 3 Average 45 | 14 68 23 Maximum Alert Level 1 | . 1 . Low Security (%) 99 | 100 98 100 Level 1 . | . 1 . Level 2 . | . . . Level 3 . | . . . Level 4 . | . . . Level 5 . | . . . High Security . | . . . Max Security . | . . . Squads Dispatched 1 | . 1 . Investigation . | . . . Extermination . | . . . Reinforcement 1 | . 1 . Assault . | . . . Garrison . | . . . Intercept . | . . . Searches Triggered . | . . . Construction Impeded . | . . . Haulers Reinforced . | . . . Active Scanning Responses . | . . . Cargo Convoy Interrupts . | . . . Stealth | -11 -10 -10 --------- Run | Yrd Mat Min Distress Signals 1 | . 1 . Communications Jammed . | . . . Distress Signals . | . . . Times Spotted 41 | . 17 24 Peak Tracking Total 7 | . 4 7 Tactical Retreats 4 | . . 4 Traps | -11 -10 -10 ------- Run | Yrd Mat Min Traps Triggered 1 | . 1 . Indirectly . | . . . Trap Hack Attempts . | . . . Triggered . | . . . Disarmed . | . . . Reprogrammed . | . . . Reused . | . . . Traps Extracted . | . . . Installed . | . . . Triggered . | . . . Machines | -11 -10 -10 ---------- Run | Yrd Mat Min Machines Disabled 1 | . 1 . Max in Single Turn 1 | . 1 . Machines Repaired . | . . . Machines Dismantled . | . . . Machines Sabotaged . | . . . Overloaded Fab Kills . | . . . Hacking | -11 -10 -10 --------- Run | Yrd Mat Min Machines Accessed 10 | . 10 . Terminals 8 | . 8 . Fabricators . | . . . Repair Stations . | . . . Recycling Units 2 | . 2 . Scanalyzers . | . . . Garrison Access . | . . . Total Hacks 27 | . 27 . Successful 15 | . 15 . Failed 12 | . 12 . Catastrophic 1 | . 1 . Database Lockouts . | . . . Manual 20 | . 20 . Terminals 24 | . 24 . Fabricators . | . . . Repair Stations . | . . . Recycling Units 3 | . 3 . Scanalyzers . | . . . Garrison Access . | . . . Terminal Hacks 7 | . 7 . Prototype ID Bank 5 | . 5 . Locate Traps 1 | . 1 . Zone Layout 1 | . 1 . Fabricator Hacks . | . . . Repair Station Hacks . | . . . Recycling Unit Hacks 1 | . 1 . Retrieve Components 1 | . 1 . Scanalyzer . | . . . Garrison Access Hacks . | . . . Unauthorized Hacks 7 | . 7 . Terminals 7 | . 7 . Track 1 | . 1 . Assimilate 1 | . 1 . Botnet 4 | . 4 . Operators 1 | . 1 . Fabricators . | . . . Repair Stations . | . . . Recycling Units . | . . . Scanalyzers . | . . . Garrison Access . | . . . Data Cores Recovered . | . . . Used . | . . . Hacking Detections 9 | . 9 . Full Trace Events 1 | . 1 . Feedback Events . | . . . Feedback Blocked . | . . . Robot Schematics Acquired . | . . . Robots Built . | . . . Authchips . | . . . Time . | . . . Total Robot Build Rating . | . . . Part Schematics Acquired . | . . . Parts Built . | . . . Authchips . | . . . Time . | . . . Total Part Build Rating . | . . . Parts Repaired . | . . . Time . | . . . Parts Recycled . | . . . Recycled Matter . | . . . Retrieved Matter . | . . . Retrieved Components 1 | . 1 . Parts Scanalyzed . | . . . Part Schematics Acquired . | . . . Parts Damaged . | . . . Bothacking | -11 -10 -10 ------------ Run | Yrd Mat Min Used RIF Installer . | . . . Robots Hacked . | . . . Non-combat . | . . . Combat . | . . . Robot Hacks Applied . | . . . Relay Couplers Released . | . . . Fabnet Peak Effective % . | . . . Robots Rewired . | . . . Allies Hacked . | . . . Hacks Repelled . | . . . Allies | -11 -10 -10 -------- Run | Yrd Mat Min Total Allies 1 | . . 1 Largest Group 1 | . . 1 Highest-Rated Group 31 | . . 31 Highest-Rated Ally 31 | . . 31 Total Orders . | . . . Ally Attacks . | . . . Total Damage . | . . . Kills . | . . . Allies Corrupted . | . . . Allies Melted . | . . . Intel | -11 -10 -10 ------- Run | Yrd Mat Min Robot Analysis Total . | . . . Derelict Logs Recovered . | . . . Drone Launches . | . . . Drone Recoveries . | . . . Exploration | -11 -10 -10 ------------- Run | Yrd Mat Min Turns Passed 2711 | 183 1351 1177 Spaces Moved 1287 | 89 678 520 Core 7 | 6 . 1 Treads 1280 | 83 678 519 Legs . | . . . Wheels . | . . . Hover . | . . . Flight . | . . . Fastest Speed 50 | 50 160 50 Average Speed 159 | 152 160 159 Slowest Speed 160 | 160 160 160 Overloaded Moves . | . . . Propulsion Burnouts . | . . . Robots Hopped . | . . . Cave-ins Triggered . | . . . Exploration Rate (%) 64 | 7 96 89 Regions Visited 2 Branch Regions 1 Pre-discovered Areas . | . . . Known Exits Taken . | . . . Unknown Exits Taken 2 | 1 1 . Scrap Searched 1 | . . 1 Spaces Dug 13 | . . 13 Terrain Destroyed 133 | 2 34 97 Melee 13 | . . 13 Projectile 1 | . . 1 AOE 119 | 2 34 83 Terrain Rammed . | . . . Walls Destroyed . | . . . Machines Disabled . | . . . Actions | -11 -10 -10 --------- Run | Yrd Mat Min Total 1683 | 115 809 759 Wait 207 | 2 38 167 Move 1285 | 88 677 520 Hop . | . . . Pick Up 11 | 4 5 2 Fast Attach 11 | 6 4 1 Attach 6 | 1 2 3 Detach . | . . . Swap 12 | 1 8 3 Drop 3 | 2 . 1 Fire 92 | 9 64 19 Melee 42 | . . 42 Ram . | . . . Kick . | . . . Crush 14 | 2 11 1 Escape Stasis . | . . . Rewire . | . . . Trap . | . . . Miscellaneous . | . . . Route ------- -11/Scrapyard -10/Materials (discovered 5 exits: [*Mat x3] / [*Min x2]) -10/Mines (discovered 3 exits: [*Mat x2] / [*Sub]) History --------- Turn | Location | Event 18 | -11/Scrapyard | Discovered new exit (range 15) 184 | -11/Scrapyard | Entered Materials 225 | -10/Materials | Discovered new exit (range 10) 301 | -10/Materials | Build established: Mutant 440 | -10/Materials | Discovered new exit (range 13) 732 | -10/Materials | Discovered new exit (range 15) 1126 | -10/Materials | Core integrity fell below 50% 1209 | -10/Materials | Discovered new exit (range 16) 1322 | -10/Materials | Discovered new exit (range 13) 1535 | -10/Materials | Entered Mines 1554 | -10/Mines | Met a Derelict bent on vengeance 1601 | -10/Mines | Discovered new exit (range 7) 1642 | -10/Mines | Received a Mining Laser from a helpful Derelict 1989 | -10/Mines | Assembled infested the area 1994 | -10/Mines | Assisted by a Guerilla fighting off Assembled 2102 | -10/Mines | Destroyed 15 combat bots 2290 | -10/Mines | Discovered new exit (range 3) 2441 | -10/Mines | Discovered new exit (range 5) 2502 | -10/Mines | Core integrity fell below 20% 2553 | -10/Mines | Received a Rocket Launcher from a helpful Derelict 2711 | -10/Mines | Released all parts (6) 2712 | -10/Mines | Destroyed by D-53 Grenadier with Mini Grenade Launcher Last Messages --------------- 02549_ 62-FNX(g): "Pshh... whatever." 02550_ 62-FNX(g): "Everyone knows a good old rocket launcher goes a long way." 02551_ 62-FNX(g): "Need to get rid of a swarm? Done. Need a big hole in the wall? Done." 02552_ 62-FNX(g): "Need a small hole in the wall? Leave that to the mining laser wimps, I say!" 02553_ 62-FNX(g): "Would you like a rocket launcher? I know I would if I were you, so I'm going to lend you mine." 02553_ 62-FNX(g) slips back into the shadows. 02560_ Acquired Rocket Launcher. 02710_ Lgt. Treads destroyed. 02711_ Released Mining Claw. 02711_ Released Imp. Terrain Scanner. 02711_ Released Med. Laser. 02711_ Released Lgt. Nuclear Core. 02711_ Released Sml. Storage Unit. 02711_ Released Lgt. Treads. Map ----- +----------------------------------------------------+ | !| % #?????????????????????### ##??###??# #? | | ######## #????????????????????## #????????# #? | | ???????# #????????????????????# ##???????## ## | | ???????# #????????????????????# #???????## # | | ####???# #????????????????????## ##????#### # | | ##??# ##????????####????????# ##?##### < # | | #### # ####???## ##???????# #?## ## ## | | ## ##### ###?#???# #?# ### | | ###### ### ##????# #?# ### # | | " ##????# ##???# #### ### ## | | " ##?????# ###?# #??## ## ##? | | " #?????## ### ##### ## #?? | | #??#### ## # #?? | | #?## #### ##? | | ##?# ##?## ######## #? | | ##??# ## #?## #??????# #? | | #???## #### ##?# ###????##### ##? | | #??#?# #?#####?## ##??#???## ##?? | | ?????# ###?#????# #????### #??? | | ?????# ##??????## #?##?# #??? | | ?????## #???????## ##?#?# ## #??? | | #?????## #????????# #????# ### #??? | | ??#????## ##??#?#### ##???## #??# #??? | | #??????### ###??# # ##???###??## #??? | | ????????#### ##### dd #?#?????## #??? | | ?#######?#### #?# *@ ##????### #??? | | ?# ###### #?# !/! #?????## ##?? | | ?# ### =[| ## ##??#?## ### | | ?# """ #?# ##?##??#### # | | ?# """ ######## #?## # #????### # | | ?# """ ##?????# #??### ###?????# # | | ## #??#?########???#####??????# ## | | ?### ###??????##??#????????#??????# ###? | | #?## #???#????##???????????#??#???## ##??? | | ??##!#?#??#?####??#???????#??????#?#### #???? | | #?## ###???# #??#????#?????????????### #???? | | ###"* ##?# ####??????#????##??????## ##??? | | ##### ### #?#??#???????????????# #??? | | "#?# < #?????????????????????## #??? | | ###### ## #??#?#?#??#????????#?????## ##??? | | ##?#?## ##?????????##????????????????????####???? | | ##???## #??##?#? ?? ?????????? ?????????????????? | | ##???# #???#?#???#?#???????#???????????????????? | | ##?### #???#????#????????#?????????????????????? | | ##?#?# ##???#?????? ??"????????????????????????? | | ##???# #???? #??????????????????????????????? | | ###?# ### """ ??????????????????????????????? | | # ##??## """ #??????????????????????????????? | | ###???###### """ #??????????????????????????????? | | ?????#?????????? #??????????????????????????????? | +----------------------------------------------------+ Best States ------------- Heat Dissipation 25 Energy Generation 14 Energy Capacity 250 Matter Stores 300 Matter Capacity 300 Sight Range 16 Terrain Scan Range 16 Terrain Scan Density 10 Evasion (%) 40 Recoil Reduction 2 Item Schematics ----------------- None Robot Schematics ------------------ None Fabricated ------------ Nothing Alien Tech Used ----------------- None Achievements -------------- Exterminator Challenges ------------ None Game ------ Seed DiametricDisruptorPod Manual? 0 Play Time 00:15:46 Cumulative 129.3 hours Start 2024.10.03 @ 19:22:09 End 2024.10.03 @ 19:37:39 Sessions 1 Manual Loads 0 Difficulty Rogue Special Mode None Game No. 91 Rogue 88 Adventurer 3 Explorer 0 Win Type - Total 0 Types 0/0/0/0/0/0/0/0/0 Lore% 49 Gallery% 54 Achievement% 44 Wizard Run 0 Options --------- Layout 1 ASCII 0 Keyboard 1 Movement Vi Keybinds 0 Fullscreen 1 Font 28/SmallcapsGlow Map View 50x43 Zoom Use 5% Tactical HUD 1 Map Filters NONE Filters NONE Steam 1 RUN: 6b5bf756-764c-41d0-9bab-cd6756054199